Cogmind - Beta 11 X5 --- EXPLORER MODE // 2021.06.19 @ 23:27:39 Player: Krytoss Result: Destroyed by Tracker with Linked Autogun Performance ------------- Evolutions (8) 4000 Regions Visited (23) 4600 Robots Destroyed (413) 2065 Value Destroyed (28762) 28762 Prototype IDs (65) 1300 Alien Tech Used (7) 1400 Bonus (12516) 12516 TOTAL SCORE: 54643 Bonus ------- High Alert Combat Kills 4257 Follower Combat Kills 2682 Entered Garrisons 1600 Used RIF Installer 4000 Scanned by Researcher 500 Pursued by Intercept 500 Friendly Fire -1023 Cogmind --------- Core Integrity 0/1450 Matter 299/425 Energy 100/100 System Corruption 14% Temperature Cool (0) Movement Core (50) Location -2/Section 7 Parts ------- > --- POWER (2) -------- (None) > --- PROPULSION (4) --- (None) > --- UTILITY (14) ----- Relay Coupler [Brawler] (41) > --- WEAPON (4) ------- (None) > --- INVENTORY (7) ---- Experimental Heat Sink Experimental Energy Well (600) Subatomic Replicator Advanced Remote Datajack Peak State ------------ > --- POWER ------------ Light Neutrino Core Reinforced Antimatter Reactor > --- PROPULSION ------- Armored Heavy Treads Improved Heavy Siege Treads > --- UTILITY ---------- Advanced Heat Sink Advanced Heat Sink Experimental Heat Sink Advanced Energy Well Experimental Energy Well Advanced Targeting Computer Experimental Core Analyzer Beam Splitter Relay Coupler [Grunt] Relay Coupler [Brawler] Matter Drive > --- WEAPON ----------- Precision Phase Gun Precision Phase Gun Enhanced Nova Cannon Compact Tesla Bomb Launcher > --- INVENTORY -------- Relay Coupler [Hunter] Subatomic Replicator Terrabomb Advanced Remote Datajack [Rating: 176] Favorites ----------- Power Cooled Deuterium Engine Engine Cooled Deuterium Engine Power Core Light Nuclear Core Reactor Reinforced Antimatter Reactor Propulsion Advanced Treads Treads Advanced Treads Leg Aluminum Leg Hover Unit Improved Antigrav System Flight Unit Impulse Thruster Utility Advanced Heat Sink Device Advanced Heat Sink Storage High-capacity Storage Unit Processor Advanced Targeting Computer Hackware Relay Coupler [NC] Protection Improved Medium Armor Plating Artifact Matter Drive Weapon Improved Spread Laser Energy Gun Improved Spread Laser Energy Cannon Cooled Plasma Cannon Ballistic Gun Flak Gun Ballistic Cannon Light Cannon Launcher Grenade Launcher Special Weapon Advanced Remote Datajack Impact Weapon Gravity Flail Slashing Weapon Scythe Special Melee Weapon Improved Datajack Build | -11 -10 -10 -10 -9 -8 -8 -7 -7 -7 -7 -6 -6 -5 -5 -4 -4 -3 -3 -3 -2 -2 -2 -2 ------- Run | Scr Mat Min Exi Min Mat Gar Fac Gar Fac Gar Fac Gar Fac Gar Fac Gar Res Tes Gar Res Qua Gar Sec Slots Evolved 17 | . 1 . . . 4 . 2 . . . 2 . 2 . 2 . 2 . . 2 . . . Power 1 | . . . . . . . . . . . . . . . . . 1 . . . . . . Propulsion 2 | . . . . . 1 . 1 . . . . . . . . . . . . . . . . Utility 12 | . 1 . . . 2 . 1 . . . 2 . 2 . 2 . 1 . . 1 . . . Weapon 2 | . . . . . 1 . . . . . . . . . . . . . . 1 . . . Parts Attached 466 | . 5 3 2 2 37 4 27 14 3 28 47 12 15 18 23 24 52 42 28 13 8 25 34 Power 26 | . 1 . . . 3 . 3 . . . 1 . 1 . 1 2 3 3 5 . . 1 2 Engine 3 | . . . . . 1 . 1 . . . 1 . . . . . . . . . . . . Core 9 | . 1 . . . 2 . 2 . . . . . 1 . . . . 2 . . . . 1 Reactor 14 | . . . . . . . . . . . . . . . 1 2 3 1 5 . . 1 1 Propulsion 69 | . 1 2 . . 7 . 4 1 2 3 6 2 4 7 2 . 6 11 1 2 1 . 7 Treads 55 | . . 2 . . 7 . 4 1 2 3 6 2 4 7 2 . 6 2 1 2 1 . 3 Leg 6 | . 1 . . . . . . . . . . . . . . . . 5 . . . . . Wheel . | . . . . . . . . . . . . . . . . . . . . . . . . Hover 4 | . . . . . . . . . . . . . . . . . . . . . . . 4 Flight 4 | . . . . . . . . . . . . . . . . . . 4 . . . . . Utility 174 | . 1 1 2 . 8 2 7 8 . 8 10 9 7 4 10 11 20 18 12 4 2 15 15 Device 83 | . . 1 . . 1 2 2 6 . 4 5 6 1 2 7 5 12 8 5 1 1 7 7 Storage 12 | . . . 2 . 1 . 1 . . . 1 . . . 1 . . 4 . 2 . . . Processor 15 | . 1 . . . 3 . . . . . . . 1 . . . 1 5 . . . 1 3 Hackware 31 | . . . . . . . 1 . . . 2 1 1 2 1 3 6 1 5 1 . 5 2 Protection 32 | . . . . . 3 . 3 2 . 4 2 2 4 . 1 3 1 . 2 . 1 2 2 Artifact 1 | . . . . . . . . . . . . . . . . . . . . . . . 1 Weapon 197 | . 2 . . 2 19 2 13 5 1 17 30 1 3 7 10 11 23 10 10 7 5 9 10 Energy Gun 92 | . . . . 2 7 1 3 4 . 14 15 . 1 4 5 6 15 4 3 2 1 3 2 Energy Cannon 19 | . . . . . . . . . . . 5 1 . 1 1 . . 1 2 1 . 4 3 Ballistic Gun 13 | . . . . . 9 . 4 . . . . . . . . . . . . . . . . Ballistic Cannon 1 | . 1 . . . . . . . . . . . . . . . . . . . . . . Launcher 15 | . 1 . . . 3 1 . 1 . . . . . . 1 2 1 . . 2 . 1 2 Special Weapon 33 | . . . . . . . 2 . . . 6 . 2 2 1 2 5 3 4 . 2 1 3 Impact Weapon 5 | . . . . . . . . . . . . . . . 1 1 2 1 . . . . . Slashing Weapon 18 | . . . . . . . 3 . 1 3 4 . . . 1 . . 1 1 2 2 . . Piercing Weapon . | . . . . . . . . . . . . . . . . . . . . . . . . Special Melee Weapon 1 | . . . . . . . 1 . . . . . . . . . . . . . . . . Unidentified Prototypes 42 | . . . . . 4 . 1 . . . 1 . 1 . 2 . 3 14 . 1 2 . 13 Parts Lost 52 | . . . . 1 . . . 1 . . . 2 . 1 2 3 21 1 2 . . 3 15 Power 4 | . . . . 1 . . . . . . . . . . . . 1 . 1 . . . 1 Propulsion 12 | . . . . . . . . . . . . . . 1 . . 5 . . . . . 6 Utility 29 | . . . . . . . . 1 . . . 2 . . 1 3 11 1 1 . . 2 7 Weapon 7 | . . . . . . . . . . . . . . . 1 . 4 . . . . 1 1 Highest Loss Streak 18 | . . . . 1 . . . 1 . . . 2 . 1 1 3 18 1 1 . . 2 8 Average Slot Usage (%) 94 | . 96 100 100 97 96 96 99 99 99 100 99 99 98 93 90 93 95 70 86 84 86 86 78 Engine 2 | . 4 . . . 3 . 3 7 7 7 6 6 1 . . . . . . . . . . Core 2 | . 8 12 12 9 3 8 3 . . . . . 3 5 1 . . 1 . . . . 1 Reactor 2 | . . . . . . . . . . . . . . . 3 5 8 1 7 8 8 8 6 Treads 19 | . . 24 25 25 24 25 27 28 27 28 25 24 22 21 15 15 15 2 9 8 8 8 7 Device 15 | . . 10 12 12 7 12 14 16 21 18 22 20 18 11 18 20 25 7 13 12 15 14 15 Storage 6 | . 12 12 12 12 8 8 7 7 7 7 5 6 5 5 5 5 3 5 4 6 8 8 7 Processor 7 | . 8 12 12 12 14 8 7 7 7 7 6 6 8 5 5 5 4 5 11 6 . 3 5 Hackware 10 | . . . . . . . 6 3 . . 7 6 10 15 16 20 18 29 21 21 25 21 15 Protection 6 | . 12 1 . . 7 8 7 7 7 9 6 9 10 11 9 8 3 . 3 4 4 3 2 Energy Gun 10 | . 12 . . 2 8 6 10 19 20 20 13 12 9 8 13 12 11 3 8 4 7 6 4 Energy Cannon 1 | . . . . . . . . . . . 2 5 5 4 1 . . . 1 4 4 5 5 Ballistic Gun 2 | . 12 . . . 11 16 9 . . . . . . . . . . . . . . . . Ballistic Cannon 1 | . . 12 12 12 3 . . . . . . . . . . . . . . . . . . Launcher 1 | . . 12 12 9 . 1 . 1 . . . . . . . . . . . . . . 1 Special Weapon 1 | . . . . . . . . . . . 1 . 1 1 . 2 . 2 2 4 4 3 2 Naked Turns . | . . . . . . . . . . . . . . . . . . . . . . . . Heaviest Build 131 | 18 22 22 52 52 68 68 68 68 67 72 79 88 93 95 131 92 122 57 102 120 120 116 110 Greatest Support 155 | 20 20 40 40 40 65 64 86 86 86 84 102 98 105 100 125 122 122 150 150 155 155 155 155 Greatest Overweight (x) 24 | . 1 . 1 1 1 1 . . 1 . . . . 1 1 . 24 4 . . . . 1 Average Overweight (x) . | . . . . 1 . . . . . . . . . . . . . . . . . . . Largest Inventory Capacity 20 | . 10 10 20 20 20 20 20 20 20 20 20 20 20 20 20 20 20 5 5 5 5 5 7 Average Capacity 16 | . 10 10 16 20 20 20 20 20 20 20 19 20 20 20 20 20 19 5 5 5 5 5 5 Most Carried 20 | . 10 10 15 18 20 20 20 20 20 20 20 20 20 20 20 20 20 5 5 5 5 5 5 Average Carried 15 | . 9 9 11 16 19 19 19 19 20 19 19 19 19 19 19 19 19 4 4 4 4 4 4 Final Capacity 20 | 10 10 10 20 20 20 20 20 20 20 20 20 20 20 20 20 20 5 5 5 5 5 5 7 Final Carried 20 | 7 10 10 15 18 20 20 20 20 20 20 20 20 20 20 20 20 5 5 5 5 5 5 4 Class Distribution -------------------- 19% | Botlord-Mutant 17% | Hacker-Mutant 14% | Botlord-Tank 12% | Hacker-Gunner 11% | Bothacker-Mutant 10% | Bothacker-Gunner 4% | Botlord-Gunner 4% | Hacker-Skirmisher Dominant Class ---------------- Hacker-Mutant | -10/Materials Hacker-Mutant | -10/Mines Hacker-Mutant | -10/Exiles Hacker-Mutant | -9/Mines Hacker-Skirmisher | -8/Materials Hacker-Gunner | -8/Garrison Hacker-Gunner | -7/Factory Hacker-Gunner | -7/Garrison Bothacker-Gunner | -7/Factory Bothacker-Gunner | -7/Garrison Bothacker-Mutant | -6/Factory Bothacker-Gunner | -6/Garrison Botlord-Mutant | -5/Factory Botlord-Tank | -5/Garrison Botlord-Gunner | -4/Factory Botlord-Tank | -4/Garrison Botlord-Tank | -3/Research Botlord-Mutant | -3/Testing Bothacker-Mutant | -3/Garrison Botlord-Mutant | -2/Research Botlord-Mutant | -2/Quarantine Botlord-Mutant | -2/Garrison Botlord-Mutant | -2/Section 7 Resources | -11 -10 -10 -10 -9 -8 -8 -7 -7 -7 -7 -6 -6 -5 -5 -4 -4 -3 -3 -3 -2 -2 -2 -2 ----------- Run | Scr Mat Min Exi Min Mat Gar Fac Gar Fac Gar Fac Gar Fac Gar Fac Gar Res Tes Gar Res Qua Gar Sec Matter Collected 7487 | 200 78 58 10 59 855 388 538 180 30 280 535 110 140 228 269 376 617 463 694 253 97 585 444 Remotely . | . . . . . . . . . . . . . . . . . . . . . . . . Salvage Created 20371 | . 344 . . 18 1692 516 1073 794 204 1331 869 1533 377 1130 1076 823 2312 478 1342 467 385 1460 2147 Parts 780 | . 21 . . 3 87 35 49 41 5 52 44 46 17 38 31 28 87 23 25 5 16 40 87 Haulers Intercepted 7 | . 2 . . . 4 . 1 . . . . . . . . . . . . . . . . Recyclers Shooed 11 | . 1 . . . . . . . . . 4 . . . . . 3 1 . 2 . . . Parts Field Recycled . | . . . . . . . . . . . . . . . . . . . . . . . . Retrieved Matter . | . . . . . . . . . . . . . . . . . . . . . . . . Parts Self-Destructed . | . . . . . . . . . . . . . . . . . . . . . . . . Prevented . | . . . . . . . . . . . . . . . . . . . . . . . . Kills | -11 -10 -10 -10 -9 -8 -8 -7 -7 -7 -7 -6 -6 -5 -5 -4 -4 -3 -3 -3 -2 -2 -2 -2 ------- Run | Scr Mat Min Exi Min Mat Gar Fac Gar Fac Gar Fac Gar Fac Gar Fac Gar Res Tes Gar Res Qua Gar Sec Combat Hostiles Destroyed 364 | . 5 . . 1 31 22 21 22 6 26 11 37 10 20 15 10 31 5 28 6 7 25 25 Guns 266 | . 5 . . . 24 21 21 21 6 26 6 19 8 9 15 7 25 4 23 3 3 13 7 Cannons 65 | . . . . . 2 . . . . . 3 17 1 8 . . . . 4 1 4 10 15 AOE 11 | . . . . 1 5 1 . . . . . . . . . . 1 1 . . . 2 . Classes Destroyed 22 | . 5 . . 2 4 . 2 . . 1 1 1 . . . . 2 . . 1 . . 3 Worker 8 | . . . . . 2 . . . . . 3 . . . . . 3 . . . . . . Builder 6 | . . . . . . . . . . . 2 . . . 1 . 2 1 . . . . . Tunneler 1 | . . . . 1 . . . . . . . . . . . . . . . . . . . Hauler 7 | . 2 . . . 4 . 1 . . . . . . . . . . . . . . . . Recycler 11 | . 1 . . . 3 . . . . . 2 . . . 1 . 2 2 . . . . . Mechanic 1 | . . . . . . . . . . . . . . . . . . . . 1 . . . Operator 4 | . . . . . 2 . 1 . . . 1 . . . . . . . . . . . . Watcher 6 | . 1 . . . 2 . 1 . . . . . . . . . 1 1 . . . . . Swarmer 88 | . 3 . . . 9 12 . 11 2 2 . 7 2 3 1 1 8 1 7 . 3 14 2 Saboteur 4 | . . . . . . . . . . . . 2 . 2 . . . . . . . . . Grunt 115 | . 2 . . . 13 10 10 8 2 14 2 17 . 10 5 3 2 . 6 4 1 3 3 Brawler 12 | . . . . . . . . . . 2 . 5 . . . 1 . . 3 . . 1 . Duelist 6 | . . . . . . . 1 . 1 . 1 3 . . . . . . . . . . . Researcher 3 | . . . . . . . . . . . . . . . . . . . . . . . 3 Sentry 59 | . . . . . 8 . 6 2 1 7 3 3 2 7 2 4 2 . 6 2 . 3 1 Demolisher 1 | . . . . 1 . . . . . . . . . . . . . . . . . . . Specialist 2 | . . . . . . . . . . . . . . . . . 2 . . . . . . Hunter 27 | . . . . . 1 . 1 . . . 1 . . . 1 1 5 1 4 . . 4 8 Programmer 46 | . . . . . . . 3 1 . 1 4 . 6 . 6 . 11 3 2 . 3 . 6 Striker 1 | . . . . . . . . . . . . . . . . . 1 . . . . . . Executioner 4 | . . . . . . . . . . . . . . . . . . . . . . . 4 Alpha 7 1 | . . . . . . . . . . . . . . . . . . . . . . . 1 Best Kill Streak 7 | . 4 . . 2 5 6 5 6 2 5 4 7 4 6 3 3 6 4 7 2 6 5 4 Combat Bots Only 7 | . 2 . . 1 4 6 4 6 2 5 3 7 4 6 3 3 5 2 7 2 6 5 4 Max Kills in Single Turn 3 | . 1 . . 2 3 2 1 2 2 1 1 1 1 1 1 1 3 1 1 2 1 2 1 Gunslinging 1 | . . . . . . 1 . 1 1 . . . . . . . 1 . . . . . . Exploded 3 | . . . . 1 3 1 . . . . . . . . . . 1 1 . . . 2 . Melee . | . . . . . . . . . . . . . . . . . . . . . . . . Uniques/NPCs Destroyed . | . . . . . . . . . . . . . . . . . . . . . . . . Combat | -11 -10 -10 -10 -9 -8 -8 -7 -7 -7 -7 -6 -6 -5 -5 -4 -4 -3 -3 -3 -2 -2 -2 -2 -------- Run | Scr Mat Min Exi Min Mat Gar Fac Gar Fac Gar Fac Gar Fac Gar Fac Gar Res Tes Gar Res Qua Gar Sec Damage Taken 20735 | . 59 . . 254 586 392 698 370 151 888 711 818 445 741 980 776 4041 529 1273 668 229 1562 4564 Core 2816 | . 15 . . 45 53 . 57 30 28 74 35 79 22 37 34 69 729 44 136 2 19 48 1260 Absorbed by Shields 2012 | . . . . . . . . . . . . . . . . . 690 . 348 262 128 584 . Reduced by Siege Mode 336 | . . . . . . . . . . . . . . . . 26 24 . 90 44 . 99 53 Core Remaining (%) 80 | 100 . . . 76 . 90 . . . 73 . 86 . 94 . 91 . . 30 . . . . Volleys Fired 1155 | . 16 2 . 6 74 38 56 51 11 66 73 67 42 50 43 70 104 17 107 37 12 126 87 Largest 4 | . 2 1 . 2 3 3 3 3 3 3 3 3 3 3 3 3 3 2 3 3 3 3 4 Hottest 383 | . 60 35 . 80 145 117 150 211 211 230 226 255 255 267 267 237 264 188 286 308 308 334 383 Shots Fired 2593 | . 32 2 . 9 220 95 144 125 29 180 132 180 71 114 108 135 273 27 197 71 30 217 202 Gun 1977 | . 32 . . 3 195 93 142 122 29 180 77 118 33 69 103 120 261 23 148 34 18 100 77 Cannon 469 | . . 2 . 6 21 . . . . . 42 62 36 40 . . . . 25 26 12 88 109 Launcher 20 | . . . . . 4 2 . 3 . . . . . . . 1 2 . . . . 2 6 Special 127 | . . . . . . . 2 . . . 13 . 2 5 5 14 10 4 24 11 . 27 10 Kinetic 287 | . 16 2 . 6 136 66 61 . . . . . . . . . . . . . . . . Thermal 2124 | . . . . . 64 27 81 122 29 180 119 180 69 109 103 120 261 23 173 60 30 188 186 Explosive 8 | . . . . . 4 2 . . . . . . . . . . . . . . . 2 . Electromagnetic 47 | . 16 . . 3 16 . . 3 . . . . . . . 1 2 . . . . . 6 Robot Hit Streak 157 | . 11 5 . 12 51 37 54 39 43 157 30 52 25 36 41 57 46 18 34 28 19 53 55 Robot Miss Streak 4 | . 2 1 . . 2 4 2 3 4 1 2 3 3 2 1 1 2 1 2 2 1 1 1 Penetration Max . | . . . . . . . . . . . . . . . . . . . . . . . . Secondary Targets 32 | . 1 . . . 4 4 1 4 2 3 . . . 1 1 . 6 . 2 . . 3 . Max Gunslinging Chain 1 | . 1 . . . 1 1 1 1 1 1 . . . 1 1 . 1 . 1 . . 1 . Shots Hit Robots 1964 | . 22 1 . 9 171 57 123 73 24 135 109 126 43 81 96 90 228 26 146 62 24 153 165 Core Hits 1238 | . 14 . . 5 74 70 86 58 33 116 73 188 61 73 48 32 85 7 60 21 10 57 67 Critical Kills 21 | . . . . . 1 . . . . . 1 1 . 1 . . . 5 9 1 . . 2 Critical Parts Destroyed 25 | . 1 . . . . . . . . . . . . . . . . 1 21 2 . . . Critical Strikes 115 | . 2 . . . 11 2 6 7 . 4 3 1 . 4 4 2 13 6 36 3 . 2 9 Burn 60 | . . . . . 9 2 6 7 . 3 2 . . 3 4 2 13 . . . . 2 7 Meltdown 6 | . . . . . . . . . . . 1 1 . 1 . . . . . 1 . . 2 Destroy 46 | . 1 . . . 1 . . . . . . . . . . . . 6 36 2 . . . Blast 1 | . . . . . 1 . . . . . . . . . . . . . . . . . . Corrupt 1 | . 1 . . . . . . . . . . . . . . . . . . . . . . Sever 1 | . . . . . . . . . . 1 . . . . . . . . . . . . . Melee Attacks 58 | . . . . . . . 9 1 1 15 16 . . . 1 1 5 7 . 1 1 . . Impact 13 | . . . . . . . . . . . . . . . . 1 5 7 . . . . . Slashing 44 | . . . . . . . 8 1 1 15 16 . . . 1 . . . . 1 1 . . Piercing . | . . . . . . . . . . . . . . . . . . . . . . . . Sneak Attacks 8 | . . . . . . . 1 . . . 6 . . . . . . 1 . . . . . Combat Hostiles . | . . . . . . . . . . . . . . . . . . . . . . . . Follow-up Attacks . | . . . . . . . . . . . . . . . . . . . . . . . . Damage Inflicted 53666 | . 350 16 . 212 3520 1533 2584 1536 611 3736 3026 4199 1499 2970 2434 1881 5983 794 3591 1812 862 4751 5766 Guns 37837 | . 306 . . 31 2693 1223 2584 1457 611 2842 1592 2888 960 1400 2415 1664 5644 665 3071 946 539 2318 1988 Cannons 11650 | . . 16 . 101 232 . . . . . 804 1311 539 1570 . . . . 520 866 312 1992 3387 Explosions 2405 | . 44 . . 80 595 310 . 79 . . . . . . . 217 259 . . . . 441 380 Melee 1722 | . . . . . . . . . . 894 630 . . . . . 69 129 . . . . . Ramming 52 | . . . . . . . . . . . . . . . 19 . 11 . . . 11 . 11 Kinetic 3767 | . 108 16 . 101 1570 845 1127 . . . . . . . . . . . . . . . . Thermal 45431 | . 44 . . 80 1171 378 1457 1457 611 2842 2396 4199 1499 2970 2415 1664 5644 665 3591 1812 851 4310 5375 Explosive 1299 | . . . . . 548 310 . . . . . . . . . . . . . . . 441 . Electromagnetic 1395 | . 198 . . 31 231 . . 79 . . . . . . . 217 259 . . . . . 380 Impact 198 | . . . . . . . . . . . . . . . . . 69 129 . . . . . Slashing 1524 | . . . . . . . . . . 894 630 . . . . . . . . . . . . Piercing . | . . . . . . . . . . . . . . . . . . . . . . . . Highest Corruption 26 | . . . . . . . 1 1 1 2 2 2 2 2 3 3 16 24 26 3 5 9 14 Average Corruption 6 | . . . . . . . 1 1 1 1 1 2 1 2 2 3 6 21 25 2 3 6 10 Corruption Purged . | . . . . . . . . . . . . . . . . . . . . . . . . Effects 372 | . . . . . . . 1 9 2 11 9 20 4 15 7 22 39 45 80 8 8 37 55 Message Errors 102 | . . . . . . . 1 . 1 4 3 8 1 8 3 7 7 14 13 3 4 11 14 Matter Fused 64 | . . . . . . . . . . . . . . . 1 6 10 7 20 2 1 7 10 Heat Flow Errors 52 | . . . . . . . . . . 4 2 3 1 5 1 3 3 8 11 . 1 2 8 Energy Discharges 42 | . . . . . . . . 4 . 2 3 3 1 1 2 1 5 5 7 1 1 4 2 Parts Rejected 5 | . . . . . . . . . . . . . . . . . 2 . 1 . . 1 1 Data Loss (minor) 57 | . . . . . . . . 4 1 . 1 5 . 1 . 5 10 5 11 2 1 6 5 Data Loss (major) 10 | . . . . . . . . . . . . . . . . . . 2 4 . . 1 3 Misfires 10 | . . . . . . . . . . . . . . . . . . 1 5 . . 2 2 Alerts 6 | . . . . . . . . . . . . . . . . . . 1 2 . . . 3 Misdirections 4 | . . . . . . . . . . . . . . . . . . . . . . . 4 Weapon Failures 20 | . . . . . . . . 1 . 1 . 1 1 . . . 2 2 6 . . 3 3 Overload Shots 40 | . . . . . . . . . . . . 5 8 26 1 . . . . . . . . Effects 1 | . . . . . . . . . . . . . . . 1 . . . . . . . . Meltdown 1 | . . . . . . . . . . . . . . . 1 . . . . . . . . Overflow Damage 570 | . . . . . 37 . . . . 95 138 . 20 49 . . 2 75 . 20 11 58 65 Projectiles 238 | . . . . . 8 . . . . . 7 . 20 49 . . . . . 20 11 58 65 Explosions 31 | . . . . . 29 . . . . . . . . . . . 2 . . . . . . Melee 301 | . . . . . . . . . . 95 131 . . . . . . 75 . . . . . Knockbacks 8 | . . 1 . 3 2 . . . . . . . . . 1 . . 1 . . . . . Impact 2 | . . . . . . . . . . . . . . . 1 . . 1 . . . . . Kinetic 5 | . . 1 . 2 2 . . . . . . . . . . . . . . . . . . Secondary 1 | . . . . 1 . . . . . . . . . . . . . . . . . . . Self-Inflicted Damage 29 | . . . . . 3 . . 5 . . . . . . . . 3 . . . . . 18 Shots 3 | . . . . . 1 . . 1 . . . . . . . . . . . . . . 1 Rammed 6 | . . . . . . . . . . . . . . . 1 . 2 . . . 1 . 2 Targets Rammed 6 | . . . . . . . . . . . . . . . 1 . 2 . . . 1 . 2 Kicked . | . . . . . . . . . . . . . . . . . . . . . . . . Crushed . | . . . . . . . . . . . . . . . . . . . . . . . . Highest Temperature 443 | . 32 . . 58 443 117 126 270 108 390 123 193 219 195 310 108 346 378 316 362 368 396 373 Average Temperature 90 | . 12 . . 34 105 35 30 62 51 77 32 52 74 89 122 71 128 108 82 108 88 153 110 Received Heat Transfer 4392 | . 51 . . . 342 324 366 114 57 525 297 468 63 345 214 302 113 . 231 207 4 144 225 Effects 9 | . . . . . 3 . . . . 1 . . . . . . . 1 . 1 . 3 . Shutdowns 2 | . . . . . . . . . . 1 . . . . . . . 1 . . . . . Energy Bleed 2 | . . . . . . . . . . . . . . . . . . . . 1 . 1 . Interference 5 | . . . . . 3 . . . . . . . . . . . . . . . . 2 . Siege Activations 22 | . . . . . . . . . . . . . . . 2 2 2 . 5 2 . 4 5 Total Turns 476 | . . . . . . . . . . . . . . . 35 65 20 . 145 40 . 107 64 Longest Duration 58 | . . . . . . . . . . . . . . . 18 58 11 . 53 35 . 47 24 Robots Corrupted 1 | . . . . . . . . . . . . . . . . . . . . . . . 1 Combat Hostiles 1 | . . . . . . . . . . . . . . . . . . . . . . . 1 Parts Fried 9 | . 1 . . . . . . . . . . . . . . . 3 3 . . . . 2 Impact Corruptions 4 | . . . . . . . . . . . . . . . . . . 4 . . . . . Robots Melted 22 | . . . . . . . . 1 . . 2 1 1 4 . 3 5 . 1 2 . . 2 Combat Hostiles 21 | . . . . . . . . 1 . . 2 1 1 3 . 3 5 . 1 2 . . 2 Parts Melted 180 | . . . . . 6 1 8 5 . 10 8 4 7 12 12 13 48 1 4 . 1 16 24 Heat Transferred 62184 | . . . . . 2875 814 3182 2834 659 4693 3334 4075 1355 4100 3749 2980 9080 666 4167 2230 888 4324 6179 Parts Sabotaged 9 | . . . . . . . . . . . . 4 . 4 . . . . . . . . 1 Parts Stolen . | . . . . . . . . . . . . . . . . . . . . . . . . Parts Stripped . | . . . . . . . . . . . . . . . . . . . . . . . . Power Chain Reactions 3 | . 1 . . 1 1 . . . . . . . . . . . . . . . . . . Missiles Intercepted . | . . . . . . . . . . . . . . . . . . . . . . . . Alert | -11 -10 -10 -10 -9 -8 -8 -7 -7 -7 -7 -6 -6 -5 -5 -4 -4 -3 -3 -3 -2 -2 -2 -2 ------- Run | Scr Mat Min Exi Min Mat Gar Fac Gar Fac Gar Fac Gar Fac Gar Fac Gar Res Tes Gar Res Qua Gar Sec Peak Influence 1583 | . 218 3 . 30 430 967 616 823 374 1052 429 1276 610 940 400 928 775 652 1583 797 522 1346 890 Initial 668 | . . 3 . . 8 151 376 18 320 110 409 53 497 140 366 216 391 279 220 668 304 305 568 Average 476 | . 67 2 . 3 184 762 219 538 269 685 88 728 396 574 174 622 417 268 1040 668 367 900 633 Maximum Alert Level 4 | . 1 . . . 2 3 2 3 1 3 2 4 2 3 2 3 3 2 4 3 2 4 3 Low Security (%) 28 | . 90 100 . 100 55 7 56 21 26 7 84 12 9 12 62 2 9 26 . . . . . Level 1 21 | . 9 . . . 43 6 17 17 73 19 14 9 51 17 37 27 40 72 10 . 72 1 . Level 2 20 | . . . . . 1 14 25 12 . 20 1 21 38 33 . 23 44 . 9 67 27 27 74 Level 3 22 | . . . . . . 72 . 48 . 53 . 42 . 36 . 46 4 . 22 32 . 37 25 Level 4 6 | . . . . . . . . . . . . 15 . . . . . . 57 . . 33 . Level 5 . | . . . . . . . . . . . . . . . . . . . . . . . . High Security . | . . . . . . . . . . . . . . . . . . . . . . . . Max Security . | . . . . . . . . . . . . . . . . . . . . . . . . Squads Dispatched 62 | . . . . . 6 . 9 . 1 . 6 . 7 . 5 . 8 1 . 4 2 . 13 Investigation 3 | . . . . . . . 1 . . . . . 1 . . . 1 . . . . . . Extermination 22 | . . . . . . . 3 . . . 4 . 3 . 2 . 4 1 . 1 1 . 3 Reinforcement 19 | . . . . . 2 . 2 . . . 1 . 1 . 2 . 3 . . 2 . . 6 Assault 2 | . . . . . . . . . . . . . . . . . . . . 1 . . 1 Garrison 13 | . . . . . 4 . 3 . 1 . 1 . 2 . 1 . . . . . 1 . . Intercept 3 | . . . . . . . . . . . . . . . . . . . . . . . 3 Construction Impeded . | . . . . . . . . . . . . . . . . . . . . . . . . Haulers Reinforced 4 | . . . . . . . 1 . . . . . . . 1 . 1 . . 1 . . . Cargo Convoy Interrupts 2 | . . . . . . . . . . . . . . . 1 . 1 . . . . . . Stealth | -11 -10 -10 -10 -9 -8 -8 -7 -7 -7 -7 -6 -6 -5 -5 -4 -4 -3 -3 -3 -2 -2 -2 -2 --------- Run | Scr Mat Min Exi Min Mat Gar Fac Gar Fac Gar Fac Gar Fac Gar Fac Gar Res Tes Gar Res Qua Gar Sec Distress Signals 6 | . . . . . 4 . . . 1 . . . . . . . 1 . . . . . . Communications Jammed 363 | . . . . . . . . . . . . . . . 29 . 123 17 45 3 1 . 145 Distress Signals 363 | . . . . . . . . . . . . . . . 29 . 123 17 45 3 1 . 145 Times Spotted 605 | . 9 . . 2 49 23 26 26 7 29 22 41 16 26 38 25 67 16 52 21 12 42 56 Peak Tracking Total 15 | . 3 . . 2 5 6 3 6 3 5 4 7 5 6 12 7 15 4 7 6 4 6 9 Tactical Retreats 27 | . . . . 1 2 1 2 1 . 1 . 4 1 1 . 2 1 . 5 . . 4 1 Traps | -11 -10 -10 -10 -9 -8 -8 -7 -7 -7 -7 -6 -6 -5 -5 -4 -4 -3 -3 -3 -2 -2 -2 -2 ------- Run | Scr Mat Min Exi Min Mat Gar Fac Gar Fac Gar Fac Gar Fac Gar Fac Gar Res Tes Gar Res Qua Gar Sec Traps Triggered 18 | . . . . . 1 9 1 . . 3 . . . 2 1 . . . 1 . . . . Indirectly . | . . . . . . . . . . . . . . . . . . . . . . . . Trap Hack Attempts . | . . . . . . . . . . . . . . . . . . . . . . . . Triggered . | . . . . . . . . . . . . . . . . . . . . . . . . Disarmed . | . . . . . . . . . . . . . . . . . . . . . . . . Reprogrammed 8 | . 4 . . . . . . . . . . . . . . . . 4 . . . . . Reused 4 | . 2 . . . . . . . . . . . . . . . . 2 . . . . . Traps Extracted . | . . . . . . . . . . . . . . . . . . . . . . . . Installed . | . . . . . . . . . . . . . . . . . . . . . . . . Triggered 5 | . 2 . . . . . . 1 . . . . . . . . . 2 . . . . . Exploded 2 | . . . . . . 1 1 . . . . . . . . . . . . . . . . Machines | -11 -10 -10 -10 -9 -8 -8 -7 -7 -7 -7 -6 -6 -5 -5 -4 -4 -3 -3 -3 -2 -2 -2 -2 ---------- Run | Scr Mat Min Exi Min Mat Gar Fac Gar Fac Gar Fac Gar Fac Gar Fac Gar Res Tes Gar Res Qua Gar Sec Machines Disabled 75 | . 2 . . . 1 4 . 7 . 6 2 7 . 6 3 7 2 2 8 . 3 5 10 Max in Single Turn 2 | . 2 . . . 1 1 . 1 . 1 1 2 . 2 1 2 1 1 2 . 1 1 1 Garrison Access 1 | . . . . . . . . . . . 1 . . . . . . . . . . . . Garrison Relay 35 | . . . . . . 4 . 4 . 4 . 5 . 4 . 4 . . 5 . . 5 . Phase Generator 6 | . . . . . . . . 1 . 1 . 1 . 1 . 1 . . 1 . . . . Machines Sabotaged . | . . . . . . . . . . . . . . . . . . . . . . . . Garrisons Compromised . | . . . . . . . . . . . . . . . . . . . . . . . . Overloaded Fab Kills . | . . . . . . . . . . . . . . . . . . . . . . . . Fab Network Shutdowns 1 | . . . . . . . . . . . . . . . . . . 1 . . . . . Hacking | -11 -10 -10 -10 -9 -8 -8 -7 -7 -7 -7 -6 -6 -5 -5 -4 -4 -3 -3 -3 -2 -2 -2 -2 --------- Run | Scr Mat Min Exi Min Mat Gar Fac Gar Fac Gar Fac Gar Fac Gar Fac Gar Res Tes Gar Res Qua Gar Sec Machines Accessed 92 | . 7 . 1 . 13 . 8 . 3 . 20 . 5 . 6 . 5 9 . 2 4 . 9 Terminals 52 | . 7 . . . 9 . 2 . . . 11 . 3 . 1 . 2 5 . 1 3 . 8 Fabricators 13 | . . . . . . . 2 . 1 . 5 . . . 2 . 1 2 . . . . . Repair Stations 12 | . . . . . 1 . 2 . 1 . 1 . 1 . 2 . 1 1 . 1 . . 1 Recycling Units . | . . . . . . . . . . . . . . . . . . . . . . . . Scanalyzers 5 | . . . . . 2 . 1 . . . 1 . . . . . 1 . . . . . . Garrison Access 9 | . . . . . 1 . 1 . 1 . 2 . 1 . 1 . . 1 . . 1 . . Total Hacks 258 | . 45 . 1 . 52 . 17 . 4 . 59 . 13 . 13 . 9 23 . 2 6 . 14 Successful 183 | . 33 . 1 . 37 . 14 . 4 . 42 . 8 . 9 . 5 16 . . 5 . 9 Failed 75 | . 12 . . . 15 . 3 . . . 17 . 5 . 4 . 4 7 . 2 1 . 5 Catastrophic 6 | . . . . . 1 . 1 . . . 1 . 1 . . . . . . 1 . . 1 Database Lockouts . | . . . . . . . . . . . . . . . . . . . . . . . . Manual 108 | . 35 . . . 22 . 2 . 1 . 30 . 5 . . . 2 6 . 2 . . 3 Terminals 171 | . 45 . . . 34 . 3 . . . 41 . 9 . 2 . 3 16 . 1 5 . 12 Fabricators 27 | . . . . . . . 3 . 1 . 11 . . . 6 . 2 4 . . . . . Repair Stations 25 | . . . . . 2 . 5 . 2 . 2 . 3 . 4 . 2 2 . 1 . . 2 Recycling Units . | . . . . . . . . . . . . . . . . . . . . . . . . Scanalyzers 23 | . . . . . 15 . 5 . . . 1 . . . . . 2 . . . . . . Garrison Access 11 | . . . . . 1 . 1 . 1 . 4 . 1 . 1 . . 1 . . 1 . . Terminal Hacks 93 | . 31 . 1 . 19 . 2 . . . 18 . 5 . . . 1 6 . . 4 . 6 Record 7 | . . . 1 . 1 . 1 . . . 1 . . . . . . . . . 3 . . Part Schematic 8 | . 3 . . . . . . . . . 4 . . . . . 1 . . . . . . Robot Analysis 3 | . 2 . . . . . . . . . . . . . . . . . . . . . 1 Prototype ID Bank 33 | . 22 . . . 8 . . . . . 2 . . . . . . 1 . . . . . Open Door 4 | . . . . . . . . . . . . . 1 . . . . . . . . . 3 Machine Index 1 | . . . . . . . . . . . 1 . . . . . . . . . . . . Terminal Index 1 | . . . . . . . . . . . 1 . . . . . . . . . . . . Fabricator Index 2 | . . . . . . . . . . . 1 . 1 . . . . . . . . . . Recycling Unit Index 1 | . . . . . 1 . . . . . . . . . . . . . . . . . . Garrison Index 4 | . . . . . 1 . 1 . . . 1 . 1 . . . . . . . . . . Unreport Threat 1 | . . . . . . . . . . . 1 . . . . . . . . . . . . Locate Traps 7 | . 3 . . . . . . . . . 2 . . . . . . 2 . . . . . Reprogram Traps 2 | . 1 . . . . . . . . . . . . . . . . 1 . . . . . Dispatch Records 1 | . . . . . . . . . . . . . 1 . . . . . . . . . . Maintenance Status 1 | . . . . . 1 . . . . . . . . . . . . . . . . . . Security Status 1 | . . . . . . . . . . . . . 1 . . . . . . . . . . Patrol Status 2 | . . . . . 2 . . . . . . . . . . . . . . . . . . Transport Status 1 | . . . . . 1 . . . . . . . . . . . . . . . . . . Recall Extermination 1 | . . . . . . . . . . . 1 . . . . . . . . . . . . Hauler Manifests 6 | . . . . . 3 . . . . . 1 . . . . . . 2 . . . . . Registered Components 1 | . . . . . . . . . . . . . . . . . . . . . 1 . . Registered Prototypes 1 | . . . . . 1 . . . . . . . . . . . . . . . . . . Zone Layout 3 | . . . . . . . . . . . 2 . . . . . . . . . . . 1 Activate Exoskeleton 1 | . . . . . . . . . . . . . . . . . . . . . . . 1 Fabricator Hacks 18 | . . . . . . . 2 . . . 6 . . . 4 . 2 4 . . . . . Load Schematic 10 | . . . . . . . 1 . . . 4 . . . 2 . 1 2 . . . . . Build 8 | . . . . . . . 1 . . . 2 . . . 2 . 1 2 . . . . . Repair Station Hacks 21 | . . . . . 2 . 3 . 2 . 2 . 2 . 4 . 2 2 . . . . 2 Scan Component 11 | . . . . . 1 . 2 . 1 . 1 . 1 . 2 . 1 1 . . . . 1 Repair 10 | . . . . . 1 . 1 . 1 . 1 . 1 . 2 . 1 1 . . . . 1 Recycling Unit Hacks . | . . . . . . . . . . . . . . . . . . . . . . . . Scanalyzer 18 | . . . . . 13 . 5 . . . . . . . . . . . . . . . . Insert Component 9 | . . . . . 7 . 2 . . . . . . . . . . . . . . . . Analyze 9 | . . . . . 6 . 3 . . . . . . . . . . . . . . . . Garrison Access Hacks 9 | . . . . . 1 . 1 . 1 . 2 . 1 . 1 . . 1 . . 1 . . Unlock Access 8 | . . . . . 1 . 1 . 1 . 1 . 1 . 1 . . 1 . . 1 . . Seal Access 1 | . . . . . . . . . . . 1 . . . . . . . . . . . . Unauthorized Hacks 24 | . 2 . . . 2 . 1 . 1 . 14 . . . . . . 3 . . . . 1 Terminals 17 | . 2 . . . 2 . . . . . 9 . . . . . . 3 . . . . 1 Assimilate 4 | . . . . . . . . . . . 3 . . . . . . 1 . . . . . Botnet 12 | . 2 . . . 2 . . . . . 5 . . . . . . 2 . . . . 1 Operators 1 | . . . . . . . . . . . 1 . . . . . . . . . . . . Fabricators 5 | . . . . . . . 1 . 1 . 3 . . . . . . . . . . . . Report 3 | . . . . . . . 1 . 1 . 1 . . . . . . . . . . . . Prioritize 1 | . . . . . . . . . . . 1 . . . . . . . . . . . . Haulers 1 | . . . . . . . . . . . 1 . . . . . . . . . . . . Repair Stations . | . . . . . . . . . . . . . . . . . . . . . . . . Recycling Units . | . . . . . . . . . . . . . . . . . . . . . . . . Scanalyzers . | . . . . . . . . . . . . . . . . . . . . . . . . Garrison Access 2 | . . . . . . . . . . . 2 . . . . . . . . . . . . Broadcast 1 | . . . . . . . . . . . 1 . . . . . . . . . . . . Watchers 1 | . . . . . . . . . . . 1 . . . . . . . . . . . . Data Cores Recovered 2 | . . . . . 1 . . . . . 1 . . . . . . . . . . . . Used 2 | . . . . . 1 . . . . . 1 . . . . . . . . . . . . Hacking Detections 73 | . 7 . . . 11 . 7 . . . 18 . 5 . 4 . 4 6 . 2 3 . 6 Full Trace Events 3 | . . . . . 1 . . . . . . . 1 . . . 1 . . . . . . Feedback Events 1 | . . . . . . . . . . . . . . . . . 1 . . . . . . Corruption 1 | . . . . . . . . . . . . . . . . . 1 . . . . . . Feedback Blocked . | . . . . . . . . . . . . . . . . . . . . . . . . Robot Schematics Acquired . | . . . . . . . . . . . . . . . . . . . . . . . . Robots Built . | . . . . . . . . . . . . . . . . . . . . . . . . Matter . | . . . . . . . . . . . . . . . . . . . . . . . . Time . | . . . . . . . . . . . . . . . . . . . . . . . . Total Robot Build Rating . | . . . . . . . . . . . . . . . . . . . . . . . . Part Schematics Acquired 16 | . 3 . . . 6 . 2 . . . 4 . . . . . 1 . . . . . . Parts Built 13 | . . . . . . . 2 . . . 4 . . . 3 . 2 2 . . . . . Matter 1110 | . . . . . . . 146 . . . 292 . . . 248 . 146 278 . . . . . Time 242 | . . . . . . . 24 . . . 72 . . . 53 . 24 69 . . . . . Total Part Build Rating 49 | . . . . . . . 6 . . . 12 . . . 7 . 6 18 . . . . . Parts Repaired 10 | . . . . . 1 . 1 . 1 . 1 . 1 . 2 . 1 1 . . . . 1 Time 371 | . . . . . 38 . 38 . 38 . 8 . 40 . 120 . 19 33 . . . . 37 Parts Recycled . | . . . . . . . . . . . . . . . . . . . . . . . . Recycled Matter . | . . . . . . . . . . . . . . . . . . . . . . . . Retrieved Matter . | . . . . . . . . . . . . . . . . . . . . . . . . Retrieved Components . | . . . . . . . . . . . . . . . . . . . . . . . . Parts Scanalyzed 8 | . . . . . 6 . 2 . . . . . . . . . . . . . . . . Part Schematics Acquired 8 | . . . . . 6 . 2 . . . . . . . . . . . . . . . . Parts Damaged . | . . . . . . . . . . . . . . . . . . . . . . . . Bothacking | -11 -10 -10 -10 -9 -8 -8 -7 -7 -7 -7 -6 -6 -5 -5 -4 -4 -3 -3 -3 -2 -2 -2 -2 ------------ Run | Scr Mat Min Exi Min Mat Gar Fac Gar Fac Gar Fac Gar Fac Gar Fac Gar Res Tes Gar Res Qua Gar Sec Used RIF Installer 8 | . . . . . . 1 . 1 . 1 . 1 . 1 . 1 . . 1 . . 1 . Hotswap 1 | . . . . . . . . 1 . . . . . . . . . . . . . . . Command Fork 1 | . . . . . . . . . . . . . . . . . . . . . . 1 . Signal Jammer 1 | . . . . . . . . . . . . . . 1 . . . . . . . . . Watcher Feeds 1 | . . . . . . . . . . 1 . . . . . . . . . . . . . Structural Interface 1 | . . . . . . . . . . . . . . . . . . . 1 . . . . Program Shield 1 | . . . . . . . . . . . . 1 . . . . . . . . . . . Autooverride 1 | . . . . . . . . . . . . . . . . 1 . . . . . . . Robots Hacked 80 | . . . . . . . 2 . . . 7 . 1 5 4 5 10 4 10 11 1 9 11 Non-combat 25 | . . . . . . . 2 . . . 7 . . . 2 . 3 3 1 4 . . 3 Combat 55 | . . . . . . . . . . . . . 1 5 2 5 7 1 9 7 1 9 8 Autooverrided 14 | . . . . . . . . . . . . . . . . . 3 . 4 . 1 4 2 Robot Hacks Applied 81 | . . . . . . . 3 . . . 12 . 2 5 4 5 9 4 7 11 . 10 9 parse_system 7 | . . . . . . . 1 . . . 2 . . . . . . . 1 2 . . 1 no_distress 4 | . . . . . . . . . . . 3 . . . . . . . . 1 . . . ignore_repairs 1 | . . . . . . . . . . . 1 . . . . . . . . . . . . map_walls 1 | . . . . . . . . . . . 1 . . . . . . . . . . . . drop_inventory 14 | . . . . . . . 1 . . . 3 . . . 2 . 2 1 . 2 . . 3 recall_reinforcements 1 | . . . . . . . . . . . . . . . . . 1 . . . . . . locate_stockpiles 1 | . . . . . . . . . . . 1 . . . . . . . . . . . . ignore_parts 2 | . . . . . . . . . . . 1 . . . . . 1 . . . . . . block_reporting 1 | . . . . . . . . . . . . . . . . . . 1 . . . . . focus_fire 2 | . . . . . . . . . . . . . . . . . . . . 1 . 1 . scatter_targeting 5 | . . . . . . . . . . . . . 1 . . 1 1 . . 1 . 1 . mark_system 1 | . . . . . . . . . . . . . . . . . 1 . . . . . . spike_heat 2 | . . . . . . . . . . . . . . . . . . . . . . 2 . amplify_resonance 4 | . . . . . . . . . . . . . . 1 . . 1 . . 2 . . . overwrite_iff 22 | . . . . . . . . . . . . . . 4 1 3 1 . 6 . . 3 4 streamctrl_high 2 | . . . . . . . . . . . . . 1 . . . . . . . . 1 . formatsys_low 3 | . . . . . . . 1 . . . . . . . . . . 1 . 1 . . . formatsys_high 8 | . . . . . . . . . . . . . . . 1 1 1 1 . 1 . 2 1 Relay Couplers Released 143 | . . . . . . 16 . 17 . 15 . 24 . 16 . 15 . . 21 . . 19 . Machine Destruction 143 | . . . . . . 16 . 17 . 15 . 24 . 16 . 15 . . 21 . . 19 . Attached 29 | . . . . . . . 1 . . . 1 1 1 2 1 3 6 . 5 1 . 5 2 Robots Rewired 27 | . . . . . . . . . . . . . . . . 7 . . 13 . . 7 . Allies Hacked 2 | . . . . . . . . . . 1 . . . . . . . . . . . . 1 Hacks Repelled . | . . . . . . . . . . . . . . . . . . . . . . . . Allies | -11 -10 -10 -10 -9 -8 -8 -7 -7 -7 -7 -6 -6 -5 -5 -4 -4 -3 -3 -3 -2 -2 -2 -2 -------- Run | Scr Mat Min Exi Min Mat Gar Fac Gar Fac Gar Fac Gar Fac Gar Fac Gar Res Tes Gar Res Qua Gar Sec Total Allies 77 | . . . . . . . 1 . . . 2 . 1 4 2 11 5 2 22 2 1 16 8 Largest Group 8 | . . . . . . . 1 1 1 1 2 1 1 1 1 7 1 1 8 7 2 7 7 Highest-Rated Group 421 | . . . . . . . 23 23 23 23 36 26 49 49 56 351 64 47 421 361 122 375 375 Highest-Rated Ally 69 | . . . . . . . 23 23 23 23 26 26 49 49 56 56 64 47 64 64 64 69 69 Total Orders 49 | . . . . . . . . 2 5 1 3 10 . . 2 . 7 4 5 8 2 . . STAY 17 | . . . . . . . . 1 2 1 1 5 . . 1 . . 2 2 1 1 . . FOLLOW 15 | . . . . . . . . 1 1 . 2 5 . . 1 . . 1 3 . 1 . . GUARD 6 | . . . . . . . . . . . . . . . . . . . . 6 . . . AID 4 | . . . . . . . . . 2 . . . . . . . . 1 . 1 . . . EXPLORE 3 | . . . . . . . . . . . . . . . . . 3 . . . . . . RETURN 4 | . . . . . . . . . . . . . . . . . 4 . . . . . . Ally Attacks 440 | . . . . . . . . . . . . . . 8 4 63 24 13 148 78 11 29 62 Total Damage 16727 | . . . . . . . . . . . . . . 222 206 2732 761 423 4488 3207 460 1363 2865 Kills 63 | . . . . . . . . . . . . . . 1 . 13 3 1 14 11 1 7 12 Allies Corrupted 5 | . . . . . . . . . . . . . . . . . . 1 1 1 . . 2 Allies Melted 2 | . . . . . . . . . . . . . . 1 . . . . . . . 1 . Intel | -11 -10 -10 -10 -9 -8 -8 -7 -7 -7 -7 -6 -6 -5 -5 -4 -4 -3 -3 -3 -2 -2 -2 -2 ------- Run | Scr Mat Min Exi Min Mat Gar Fac Gar Fac Gar Fac Gar Fac Gar Fac Gar Res Tes Gar Res Qua Gar Sec Robot Analysis Total 3 | . 2 . . . . . . . . . . . . . . . . . . . . . 1 Derelict Logs Recovered 1 | . . 1 . . . . . . . . . . . . . . . . . . . . . Drone Launches 4 | . . . . . . . . . . . . . . . . . 4 . . . . . . Drone Recoveries 3 | . . . . . . . . . . . . . . . . . 3 . . . . . . Exploration | -11 -10 -10 -10 -9 -8 -8 -7 -7 -7 -7 -6 -6 -5 -5 -4 -4 -3 -3 -3 -2 -2 -2 -2 ------------- Run | Scr Mat Min Exi Min Mat Gar Fac Gar Fac Gar Fac Gar Fac Gar Fac Gar Res Tes Gar Res Qua Gar Sec Turns Passed 29280 | . 547 527 1486 198 1538 1581 2174 1702 572 1630 2608 2004 1030 1201 1386 1196 1576 933 1618 703 330 1341 1399 Spaces Moved 14509 | 1 394 316 753 69 727 666 1133 973 301 809 1370 1059 494 582 639 570 479 699 729 290 162 603 691 Core 531 | . . . . . . . . . . . . . . . . . 33 289 . . . . 209 Treads 13310 | . . 316 753 69 727 666 1133 973 301 809 1370 1059 494 582 639 570 446 138 729 290 162 603 481 Legs 471 | 1 394 . . . . . . . . . . . . . . . . 76 . . . . . Wheels . | . . . . . . . . . . . . . . . . . . . . . . . . Hover 1 | . . . . . . . . . . . . . . . . . . . . . . . 1 Flight 196 | . . . . . . . . . . . . . . . . . . 196 . . . . . Fastest Speed 34 | 120 120 160 160 260 153 153 145 151 151 155 152 165 165 162 162 166 50 34 145 162 152 152 50 Average Speed 161 | 120 120 160 196 260 158 213 150 151 159 156 153 165 165 170 176 166 227 92 159 175 156 152 147 Slowest Speed 1250 | 120 200 160 260 260 260 253 151 151 261 158 165 166 167 266 263 166 1250 250 162 180 170 152 290 Overloaded Moves . | . . . . . . . . . . . . . . . . . . . . . . . . Propulsion Burnouts . | . . . . . . . . . . . . . . . . . . . . . . . . Robots Hopped 1 | . . . . . . . . . . . . . . . . . . 1 . . . . . Cave-ins Triggered 1 | . . . . . . . . . . . . . . . . . . . . . . 1 . Teleports 1 | . . . . . . . . . . . . . . . . . . . . . . . 1 Exploration Rate (%) 57 | 1 91 55 89 19 79 76 27 98 8 88 48 97 13 96 24 98 28 62 97 12 22 86 69 Regions Visited 23 Branch Regions 6 Pre-discovered Areas . | . . . . . . . . . . . . . . . . . . . . . . . . Known Exits Taken 15 | 1 1 1 1 1 1 . 1 . 1 . 1 . 1 . 1 . 1 1 . 1 1 . . Unknown Exits Taken . | . . . . . . . . . . . . . . . . . . . . . . . . Scrap Searched 2 | . . 1 . 1 . . . . . . . . . . . . . . . . . . . Spaces Dug 96 | . . . . . . . 8 . 1 . 20 . 22 . 1 9 2 3 1 1 1 27 . Terrain Destroyed 622 | . . . . 2 37 6 8 75 1 74 24 93 26 77 1 63 2 3 58 4 3 65 . Melee 26 | . . . . . . . 8 . 1 . 9 . . . 1 1 2 3 . 1 . . . Projectile 103 | . . . . . . . . . . . 15 9 26 3 . 8 . . 2 3 3 34 . AOE 493 | . . . . 2 37 6 . 75 . 74 . 84 . 74 . 54 . . 56 . . 31 . Terrain Rammed . | . . . . . . . . . . . . . . . . . . . . . . . . Walls Destroyed . | . . . . . . . . . . . . . . . . . . . . . . . . Machines Disabled . | . . . . . . . . . . . . . . . . . . . . . . . . Actions | -11 -10 -10 -10 -9 -8 -8 -7 -7 -7 -7 -6 -6 -5 -5 -4 -4 -3 -3 -3 -2 -2 -2 -2 --------- Run | Scr Mat Min Exi Min Mat Gar Fac Gar Fac Gar Fac Gar Fac Gar Fac Gar Res Tes Gar Res Qua Gar Sec Total 18280 | . 436 335 763 79 990 748 1482 1097 369 1003 1740 1176 644 697 827 717 776 950 1022 430 218 867 914 Wait 1580 | . 7 13 . . 61 16 217 41 53 58 193 33 79 32 103 39 107 145 141 77 14 96 55 Move 14475 | . 393 315 752 68 726 664 1132 971 300 807 1369 1057 493 580 638 568 478 696 727 289 161 600 691 Hop 1 | . . . . . . . . . . . . . . . . . . 1 . . . . . Pick Up 165 | . 9 1 6 3 37 4 16 8 . 9 20 3 3 6 4 5 6 7 1 4 7 2 4 Fast Attach 172 | . 1 . . . 14 . 3 1 2 3 7 5 7 6 10 5 11 33 16 3 6 13 26 Attach 52 | . 1 . . . 2 1 2 1 . . 3 1 1 1 4 1 16 6 . 3 1 2 6 Detach 38 | . . . . . 1 1 . 1 . . 2 . . . 3 1 3 9 3 2 . 6 6 Swap 249 | . 3 3 2 2 21 3 22 12 1 25 37 6 7 11 9 18 25 3 12 7 2 10 8 Drop 296 | . 6 1 3 . 54 3 24 8 1 19 20 4 12 9 11 8 19 24 15 6 13 8 28 Fire 1155 | . 16 2 . 6 74 38 56 51 11 66 73 67 42 50 43 70 104 17 107 37 12 126 87 Melee 58 | . . . . . . . 9 1 1 15 16 . . . 1 1 5 7 . 1 1 . . Ram 2 | . . . . . . . . . . . . . . . . . 1 . . . . . 1 Kick . | . . . . . . . . . . . . . . . . . . . . . . . . Crush 4 | . . . . . . . . . . . . . . . 1 . 1 . . . 1 . 1 Escape Stasis 23 | . . . . . . 18 . 2 . . . . . 2 . . . . . . . 1 . Rewire 10 | . . . . . . . 1 . . 1 . . . . . 1 . 2 . 1 . 3 1 Trap . | . . . . . . . . . . . . . . . . . . . . . . . . Miscellaneous . | . . . . . . . . . . . . . . . . . . . . . . . . Route ------- -11/Scrapyard -10/Materials (discovered 4 exits: *Mat x2 / *Min x2) -10/Mines (discovered 3 exits: *Mat x2 / *Exi) -10/Exiles (discovered 2 exits: *Min x2) -9/Mines -8/Materials (discovered 5 exits: *Fac x2 / *Sto x2 / Gar) -8/Garrison (discovered 3 exits: *Fac x3) -7/Factory (discovered 2 exits: *Fac / Gar) -7/Garrison (discovered 3 exits: *Fac x3) -7/Factory -7/Garrison (discovered 3 exits: *Fac x3) -6/Factory (discovered 3 exits: *Fac x2 / Gar) -6/Garrison (discovered 3 exits: *Fac x3) -5/Factory (discovered 3 exits: *Upp / *Ext / Gar) -5/Garrison (discovered 3 exits: *Fac x3) -4/Factory -4/Garrison (discovered 3 exits: *Res x3) -3/Research -3/Testing (discovered 2 exits: *Res / Gar) -3/Garrison (discovered 3 exits: *Res x3) -2/Research -2/Quarantine (discovered 2 exits: *Acc / Gar) -2/Garrison (discovered 3 exits: *Sec x3) -2/Section 7 (discovered 1 exit: *Acc) History --------- Turn | Location | Event 1 | -11/Scrapyard | Identified exit to Materials 1 | -11/Scrapyard | Discovered exit to Materials (range 0) 1 | -11/Scrapyard | Entered Materials 1 | -10/Materials | Evolved 1 slot: Utility x1 72 | -10/Materials | Identified exit to Materials 72 | -10/Materials | Discovered exit to Materials (range 16) 215 | -10/Materials | Identified exit to Mines 215 | -10/Materials | Discovered exit to Mines (range 9) 305 | -10/Materials | Build established: Hacker-Mutant 329 | -10/Materials | Discovered exit to Mines (range 14) 405 | -10/Materials | Discovered exit to Materials (range 16) 548 | -10/Materials | Entered Mines 556 | -10/Mines | Met a Derelict bent on vengeance 656 | -10/Mines | Discovered exit to Materials (range 12) 944 | -10/Mines | Found a hidden stash of uninstalled traps 1069 | -10/Mines | Deemed a non-threat by the Exiles lab entrance 1069 | -10/Mines | Identified exit to Exiles 1069 | -10/Mines | Discovered exit to Exiles (range 5) 1075 | -10/Mines | Entered Exiles 1096 | -10/Exiles | Identified exit to Mines 1096 | -10/Exiles | Discovered exit to Mines (range 15) 1138 | -10/Exiles | Met 8R-AWN 1162 | -10/Exiles | Met EX-HEX 1259 | -10/Exiles | Met EX-DEC 1282 | -10/Exiles | Visited The Gauntlet 1500 | -10/Exiles | Met EX-BIN 1899 | -10/Exiles | Discovered exit to Mines (range 14) 2561 | -10/Exiles | Entered Mines 2568 | -9/Mines | Received a Rocket Launcher from a helpful Derelict 2635 | -9/Mines | Identified exit to Materials 2635 | -9/Mines | Discovered exit to Materials (range 11) 2703 | -9/Mines | Assembled infested the area 2708 | -9/Mines | Assisted by a Guerilla fighting off Assembled 2759 | -9/Mines | Entered Materials 2759 | -8/Materials | Evolved 4 slots: Propulsion x1, Utility x2, Weapon x1 2900 | -8/Materials | Identified exit to Storage 2900 | -8/Materials | Discovered exit to Storage (range 5) 3381 | -8/Materials | Build established: Hacker-Skirmisher 3388 | -8/Materials | Identified exit to Factory 3388 | -8/Materials | Discovered exit to Factory (range 3) 3489 | -8/Materials | Discovered exit to Storage (range 16) 3625 | -8/Materials | Garrison activated, responded to threat 3792 | -8/Materials | Repaired Lgt. Nuclear Core 3794 | -8/Materials | Garrison activated, responded to threat 4189 | -8/Materials | Discovered exit to Factory (range 16) 4296 | -8/Materials | Identified exit to Garrison 4297 | -8/Materials | Entered Garrison 4394 | -8/Garrison | Triggered checkpoint 4438 | -8/Garrison | Garrison Relay disabled 4530 | -8/Garrison | Triggered checkpoint 4565 | -8/Garrison | Triggered checkpoint 4630 | -8/Garrison | Discovered exit to Factory (range 12) 4673 | -8/Garrison | Installed Relay Interface Framework 4732 | -8/Garrison | Triggered checkpoint 4793 | -8/Garrison | Garrison Relay disabled 4914 | -8/Garrison | Discovered exit to Factory (range 8) 4932 | -8/Garrison | Triggered checkpoint 4988 | -8/Garrison | Garrison Relay disabled 5091 | -8/Garrison | Build established: Hacker-Gunner 5288 | -8/Garrison | Discovered exit to Factory (range 13) 5350 | -8/Garrison | Triggered checkpoint 5395 | -8/Garrison | Garrison Relay disabled 5878 | -8/Garrison | Entered Factory 5878 | -7/Factory | Evolved 2 slots: Propulsion x1, Utility x1 5920 | -7/Factory | Garrison activated, responded to threat 7265 | -7/Factory | Identified exit to Factory 7265 | -7/Factory | Discovered exit to Factory (range 16) 7521 | -7/Factory | Repaired Arm. Treads 7750 | -7/Factory | Build established: Hacker-Mutant 7870 | -7/Factory | Fabricated Adv. Treads (x2) 8051 | -7/Factory | Identified exit to Garrison 8052 | -7/Factory | Entered Garrison 8052 | -7/Garrison | Accompanied by 1 ally 8082 | -7/Garrison | Triggered checkpoint 8104 | -7/Garrison | Garrison Relay disabled 8280 | -7/Garrison | Triggered checkpoint 8423 | -7/Garrison | Phase Generator disabled 8455 | -7/Garrison | Identified exit to Factory 8455 | -7/Garrison | Discovered exit to Factory (range 3) 8479 | -7/Garrison | Triggered checkpoint 8505 | -7/Garrison | Garrison Relay disabled 8618 | -7/Garrison | Triggered checkpoint 8667 | -7/Garrison | Discovered exit to Factory (range 5) 8681 | -7/Garrison | Expanded RIF knowledge: Hotswap 8722 | -7/Garrison | Triggered checkpoint 8747 | -7/Garrison | Garrison Relay disabled 8956 | -7/Garrison | Triggered checkpoint 8971 | -7/Garrison | Garrison Relay disabled 9021 | -7/Garrison | Build established: Hacker-Gunner 9076 | -7/Garrison | Discovered exit to Factory (range 15) 9621 | -7/Garrison | Build established: Bothacker-Gunner 9754 | -7/Garrison | Entered Factory 9754 | -7/Factory | Accompanied by 1 ally 10000 | -7/Factory | Repaired Adv. Treads 10276 | -7/Factory | Garrison activated, responded to threat 10325 | -7/Factory | Identified exit to Garrison 10326 | -7/Factory | Entered Garrison 10326 | -7/Garrison | Accompanied by 1 ally 10384 | -7/Garrison | Triggered checkpoint 10442 | -7/Garrison | Garrison Relay disabled 10639 | -7/Garrison | Triggered checkpoint 10762 | -7/Garrison | Phase Generator disabled 10795 | -7/Garrison | Discovered exit to Factory (range 12) 10858 | -7/Garrison | Triggered checkpoint 10962 | -7/Garrison | Garrison Relay disabled 11186 | -7/Garrison | Discovered exit to Factory (range 5) 11212 | -7/Garrison | Triggered checkpoint 11233 | -7/Garrison | Garrison Relay disabled 11462 | -7/Garrison | Discovered exit to Factory (range 10) 11486 | -7/Garrison | Expanded RIF knowledge: Watcher Feeds 11545 | -7/Garrison | Triggered checkpoint 11603 | -7/Garrison | Garrison Relay disabled 11949 | -7/Garrison | Build established: Bothacker-Mutant 11956 | -7/Garrison | Entered Factory 11956 | -6/Factory | Evolved 2 slots: Utility x2 12279 | -6/Factory | Identified exit to Factory 12279 | -6/Factory | Discovered exit to Factory (range 16) 12550 | -6/Factory | Build established: Bothacker-Gunner 12574 | -6/Factory | Fabricated Adv. Treads (x2) 12875 | -6/Factory | Build established: Bothacker-Mutant 13212 | -6/Factory | Repaired Hcp. Storage Unit 13915 | -6/Factory | Discovered exit to Factory (range 6) 14468 | -6/Factory | Garrison activated, responded to threat 14514 | -6/Factory | Fabricated Arm. Treads (x2) 14562 | -6/Factory | Identified exit to Garrison 14564 | -6/Factory | Entered Garrison 14564 | -6/Garrison | Accompanied by 1 ally 14722 | -6/Garrison | Phase Generator disabled 14734 | -6/Garrison | Spotted B-75 Beast 14734 | -6/Garrison | Spotted B-75 Beast 14780 | -6/Garrison | Triggered checkpoint 14835 | -6/Garrison | Garrison Relay disabled 14862 | -6/Garrison | Build established: Bothacker-Gunner 14881 | -6/Garrison | Triggered checkpoint 14989 | -6/Garrison | Garrison Relay disabled 15188 | -6/Garrison | Triggered checkpoint 15324 | -6/Garrison | Triggered checkpoint 15376 | -6/Garrison | Destroyed 7 combat bots 15486 | -6/Garrison | Discovered exit to Factory (range 10) 15538 | -6/Garrison | Triggered checkpoint 15567 | -6/Garrison | Garrison Relay disabled 15676 | -6/Garrison | Triggered checkpoint 15740 | -6/Garrison | Discovered exit to Factory (range 13) 15769 | -6/Garrison | Expanded RIF knowledge: Program Shield 15842 | -6/Garrison | Triggered checkpoint 15881 | -6/Garrison | Garrison Relay disabled 15904 | -6/Garrison | Triggered checkpoint 16066 | -6/Garrison | Build established: Botlord-Tank 16132 | -6/Garrison | Triggered checkpoint 16223 | -6/Garrison | Discovered exit to Factory (range 3) 16261 | -6/Garrison | Garrison Relay disabled 16314 | -6/Garrison | Triggered checkpoint 16568 | -6/Garrison | Entered Factory 16568 | -5/Factory | Evolved 2 slots: Utility x2 16863 | -5/Factory | Identified exit to Extension 16863 | -5/Factory | Discovered exit to Extension (range 6) 17319 | -5/Factory | Repaired Exp. Weapon Shielding 17457 | -5/Factory | Garrison activated, responded to threat 17487 | -5/Factory | Identified exit to Upper Caves 17487 | -5/Factory | Discovered exit to Upper Caves (range 13) 17517 | -5/Factory | Identified exit to Garrison 17598 | -5/Factory | Entered Garrison 17607 | -5/Garrison | Expanded RIF knowledge: Signal Jamming 17650 | -5/Garrison | Triggered checkpoint 17754 | -5/Garrison | Triggered checkpoint 17811 | -5/Garrison | Garrison Relay disabled 17905 | -5/Garrison | Phase Generator disabled 17948 | -5/Garrison | Triggered checkpoint 18045 | -5/Garrison | Identified exit to Factory 18045 | -5/Garrison | Discovered exit to Factory (range 10) 18096 | -5/Garrison | Triggered checkpoint 18174 | -5/Garrison | Garrison Relay disabled 18334 | -5/Garrison | Triggered checkpoint 18372 | -5/Garrison | Garrison Relay disabled 18408 | -5/Garrison | Discovered exit to Factory (range 10) 18498 | -5/Garrison | Triggered checkpoint 18590 | -5/Garrison | Triggered checkpoint 18646 | -5/Garrison | Triggered checkpoint 18710 | -5/Garrison | Garrison Relay disabled 18743 | -5/Garrison | Discovered exit to Factory (range 10) 18799 | -5/Garrison | Entered Factory 18799 | -4/Factory | Evolved 2 slots: Utility x2 18844 | -4/Factory | Found Prototype Launcher 18844 | -4/Factory | Identified Tesla Bomb Launcher 18921 | -4/Factory | Repaired Cld. Plasma Cannon? 19101 | -4/Factory | Build established: Botlord-Gunner 19161 | -4/Factory | Repaired Exp. Weapon Shielding 19498 | -4/Factory | Fabricated Hcp. Storage Unit (x1) 19898 | -4/Factory | Spotted B-86 Titan 19908 | -4/Factory | Garrison activated, responded to threat 20025 | -4/Factory | Fabricated Arm. Treads (x2) 20150 | -4/Factory | Identified exit to Garrison 20181 | -4/Factory | Cargo convoy interrupted 20182 | -4/Factory | Spotted Executioner 20185 | -4/Factory | Entered Garrison 20198 | -4/Garrison | Build established: Botlord-Tank 20301 | -4/Garrison | Lost 3 parts (3u) 20372 | -4/Garrison | Triggered checkpoint 20425 | -4/Garrison | Garrison Relay disabled 20522 | -4/Garrison | Build established: Botlord-Mutant 20533 | -4/Garrison | Phase Generator disabled 20770 | -4/Garrison | Triggered checkpoint 20770 | -4/Garrison | Spotted B-86 Titan 20790 | -4/Garrison | Allies destroyed B-86 Titan 20790 | -4/Garrison | Triggered checkpoint 20812 | -4/Garrison | Triggered checkpoint 20878 | -4/Garrison | Identified exit to Research 20878 | -4/Garrison | Discovered exit to Research (range 9) 20922 | -4/Garrison | Triggered checkpoint 20925 | -4/Garrison | Garrison Relay disabled 21068 | -4/Garrison | Garrison Relay disabled 21073 | -4/Garrison | Build established: Botlord-Tank 21112 | -4/Garrison | Discovered exit to Research (range 15) 21144 | -4/Garrison | Expanded RIF knowledge: Autooverride 21308 | -4/Garrison | Triggered checkpoint 21338 | -4/Garrison | Garrison Relay disabled 21365 | -4/Garrison | Discovered exit to Research (range 9) 21381 | -4/Garrison | Entered Research 21381 | -3/Research | Evolved 2 slots: Power x1, Utility x1 21801 | -3/Research | Fabricated Arm. Treads (x2) 22464 | -3/Research | Found Prototype Processor 22464 | -3/Research | Identified Exp. Terrain Scan Processor 22514 | -3/Research | Build established: Botlord-Gunner 22569 | -3/Research | Repaired Hvy. Armor Plating 22799 | -3/Research | Spotted Striker 22800 | -3/Research | Cargo convoy interrupted 22825 | -3/Research | Spotted Striker 22849 | -3/Research | System corruption reached 10% 22870 | -3/Research | Destroyed Striker 22926 | -3/Research | Identified exit to Testing 22926 | -3/Research | Discovered exit to Testing (range 21) 22956 | -3/Research | Core integrity fell below 50% 22957 | -3/Research | Entered Testing 22983 | -3/Testing | Found Prototype Hackware 22983 | -3/Testing | Identified System Mapper 22987 | -3/Testing | Lost 18 parts (1p4n10u3w) 23016 | -3/Testing | Found Prototype Energy Cannon 23016 | -3/Testing | Identified Imp. Potential Cannon 23079 | -3/Testing | Repaired Gravity Flail 23104 | -3/Testing | Found Prototype Processor 23104 | -3/Testing | Identified Spectral Analyzer 23137 | -3/Testing | Build established: Botlord-Mutant 23612 | -3/Testing | Identified exit to Research 23612 | -3/Testing | Discovered exit to Research (range 20) 23624 | -3/Testing | Fabricated Biometal Heavy Treads? 23751 | -3/Testing | Local fabrication network quarantined 23803 | -3/Testing | Found Prototype Processor 23803 | -3/Testing | Identified Exp. Signal Interpreter 23862 | -3/Testing | Found Prototype Slashing Weapon 23862 | -3/Testing | Identified Nanosword 23888 | -3/Testing | Identified exit to Garrison 23890 | -3/Testing | Entered Garrison 23898 | -3/Garrison | Expanded RIF knowledge: Structural Interface 23965 | -3/Garrison | Triggered checkpoint 23968 | -3/Garrison | Triggered checkpoint 24179 | -3/Garrison | Destroyed 7 combat bots 24205 | -3/Garrison | Garrison Relay disabled 24307 | -3/Garrison | Triggered checkpoint 24354 | -3/Garrison | Triggered checkpoint 24465 | -3/Garrison | Build established: Hacker-Gunner 24495 | -3/Garrison | Discovered exit to Research (range 10) 24530 | -3/Garrison | Garrison Relay disabled 24532 | -3/Garrison | Triggered checkpoint 24572 | -3/Garrison | Triggered checkpoint 24572 | -3/Garrison | Garrison Relay disabled 24798 | -3/Garrison | Triggered checkpoint 24827 | -3/Garrison | Discovered exit to Research (range 17) 25005 | -3/Garrison | Build established: Bothacker-Mutant 25016 | -3/Garrison | Garrison Relay disabled 25075 | -3/Garrison | Phase Generator disabled 25224 | -3/Garrison | Discovered exit to Research (range 10) 25268 | -3/Garrison | Triggered checkpoint 25310 | -3/Garrison | Garrison Relay disabled 25508 | -3/Garrison | Entered Research 25508 | -2/Research | Accompanied by 6 allies 25508 | -2/Research | Evolved 2 slots: Utility x1, Weapon x1 25715 | -2/Research | Build established: Botlord-Mutant 25886 | -2/Research | Spotted B-90 Cyclops 25895 | -2/Research | Allies destroyed B-90 Cyclops 25915 | -2/Research | Found Nanosword 26008 | -2/Research | First assault squad dispatched 26170 | -2/Research | Identified exit to Quarantine 26170 | -2/Research | Discovered exit to Quarantine (range 9) 26211 | -2/Research | Entered Quarantine 26211 | -2/Quarantine | Accompanied by 1 ally 26238 | -2/Quarantine | Found Alien Artifact 26238 | -2/Quarantine | Identified Subatomic Replicator 26466 | -2/Quarantine | Garrison activated, responded to threat 26515 | -2/Quarantine | Identified exit to Access 26515 | -2/Quarantine | Discovered exit to Access (range 9) 26540 | -2/Quarantine | Identified exit to Garrison 26541 | -2/Quarantine | Entered Garrison 26757 | -2/Garrison | Garrison Relay disabled 26783 | -2/Garrison | Garrison Relay disabled 26921 | -2/Garrison | Spotted B-90 Cyclops 26921 | -2/Garrison | Spotted B-90 Cyclops 26938 | -2/Garrison | Spotted B-90 Cyclops 26956 | -2/Garrison | Triggered checkpoint 27075 | -2/Garrison | Identified exit to Section 7 27075 | -2/Garrison | Discovered exit to Section 7 (range 10) 27084 | -2/Garrison | Triggered checkpoint 27133 | -2/Garrison | Garrison Relay disabled 27290 | -2/Garrison | Crushed by falling debris 27333 | -2/Garrison | Discovered exit to Section 7 (range 10) 27354 | -2/Garrison | Expanded RIF knowledge: Command Fork 27394 | -2/Garrison | Triggered checkpoint 27434 | -2/Garrison | Garrison Relay disabled 27576 | -2/Garrison | Triggered checkpoint 27682 | -2/Garrison | Discovered exit to Section 7 (range 12) 27720 | -2/Garrison | Found Antimissile System 27785 | -2/Garrison | Garrison Relay disabled 27882 | -2/Garrison | Entered Section 7 27882 | -2/Section 7 | Accompanied by 7 allies 27923 | -2/Section 7 | Spotted S7 Guard 27955 | -2/Section 7 | Found Prototype Launcher 27955 | -2/Section 7 | Identified Com. Tesla Bomb Launcher 28078 | -2/Section 7 | Repaired Enh. Nova Cannon 28264 | -2/Section 7 | Found Alien Artifact 28264 | -2/Section 7 | Identified Integrated Mediator 28264 | -2/Section 7 | Installed Integrated Mediator, increased core attachment efficiency. 28324 | -2/Section 7 | Discovered exit to Access (range 6) 28390 | -2/Section 7 | Found Prototype Device 28390 | -2/Section 7 | Identified Exp. ECM Suite 28523 | -2/Section 7 | Spotted Executioner 28528 | -2/Section 7 | Destroyed Executioner 28536 | -2/Section 7 | Spotted Executioner 28540 | -2/Section 7 | Destroyed Executioner 28593 | -2/Section 7 | Found Beam Splitter 28632 | -2/Section 7 | First assault squad dispatched 28635 | -2/Section 7 | System corruption reached 10% 28637 | -2/Section 7 | Spotted Alpha 7 28669 | -2/Section 7 | Scanned by Researcher 28720 | -2/Section 7 | Destroyed Alpha 7 28763 | -2/Section 7 | Found Prototype Processor 28763 | -2/Section 7 | Identified Exp. Core Analyzer 28773 | -2/Section 7 | Found Prototype Device 28773 | -2/Section 7 | Identified Adv. Kinecellerator 28827 | -2/Section 7 | Found Alien Artifact 28827 | -2/Section 7 | Identified Terrabomb 28827 | -2/Section 7 | Used Terrabomb 28832 | -2/Section 7 | Found Terrabomb 28853 | -2/Section 7 | Found Alien Artifact 28853 | -2/Section 7 | Identified Transdimensional Reconstructor 28853 | -2/Section 7 | Warped through subspace 28856 | -2/Section 7 | Spotted Striker 28884 | -2/Section 7 | Spotted Executioner 28889 | -2/Section 7 | Spotted Executioner 28900 | -2/Section 7 | Destroyed Executioner 28908 | -2/Section 7 | Destroyed Executioner 28979 | -2/Section 7 | Found Alien Artifact 28979 | -2/Section 7 | Identified Matter Drive 29180 | -2/Section 7 | Lost 3 parts (1p2n) 29185 | -2/Section 7 | Spotted Striker 29231 | -2/Section 7 | Intercept squad dispatched 29234 | -2/Section 7 | Spotted B-99 Colossus 29242 | -2/Section 7 | Spotted Tracker 29242 | -2/Section 7 | Spotted Tracker 29256 | -2/Section 7 | Used Terrabomb 29257 | -2/Section 7 | Core integrity fell below 50% 29265 | -2/Section 7 | Found Alien Artifact 29265 | -2/Section 7 | Identified LRC Storage 29265 | -2/Section 7 | Installed LRC Storage, increased inventory capacity (+2) 29269 | -2/Section 7 | Found Alien Artifact 29269 | -2/Section 7 | Identified LRC Matter Compressor 29269 | -2/Section 7 | Installed LRC Matter Compressor, increased matter storage capacity (+125) 29274 | -2/Section 7 | Spotted Combat Programmer 29275 | -2/Section 7 | Spotted Combat Programmer 29276 | -2/Section 7 | Core integrity fell below 20% 29281 | -2/Section 7 | Destroyed by Tracker with Linked Autogun Last Messages --------------- 29269_ LRC Matter Compressor installed, matter storage capacity increased (+125). 29270_ Exp. Core Analyzer destroyed. 29274_ System corrupted: IFF burst signal emitted. 29275_ Penetrated by Slug. 29275_ Slug penetrates Machine. 29275_ Penetrated by Slug. 29275_ Slug penetrates Machine. 29275_ Relay Coupler [Hunter] destroyed. 29276_ Penetrated by EMDS Slug. 29276_ Machine disabled. 29277_ Combat Programmer resets Striker, system corruption cleaned. 29278_ Machine disabled. 29278_ Slug penetrates Machine. 29278_ Penetrated by Slug. 29279_ EMDS Slug penetrates Tracker. 29279_ Penetrated by EMDS Slug. 29280_ Slammed into Combat Programmer. 29280_ Combat Programmer resets Tracker, system corruption cleaned. 29281_ Penetrated by EMDS Slug. Map ----- +----------------------------------------------------+ | ????????????? """""""""""" #?#""""""""" | | ?????????????###?????########## ###//#?########## | | ??????????????????????????????# ??# #??????????? | | ????????????????????????????????#??# #??????????? | | ???????????????????????????????????# #??????????? | | ???????????????????????????????????# #??######### | | ???????????????????????????????????# #??#"""""" | | ???????????????????????????????????# #??#"""""" | | ???????????????????????????????????# #??#"""""" | | ???????????????????????????######### #### " | | ????????????????????????# | | ????????????????????????# | | ????????????????????????# ############ ##" | | ?????????????????????###? #??????????? "" | | ????????????????????? !!# ##????????? " " | | ?????????????????????"""" ""???????? """""""" | | ????????????????????? ""? | | ????????????????????? """ | | ???????????????????"""" """ | | ??????????????????""""" """; | | ??????????????????""""" """; | | ?????????????????#""""" """ | | ???????????????????@ """"; "" "" """""" | | ?????????????????????"" """; ;"" """ | | ??????????????????????? p """ ; ;"" """" | | ????????????????????????#@p;;;;; ;"" """" | | ????????????????????????# ; ;"" """" | | ????????????????????????# ; ; | | ????????????????????????# K; ; | | ????????????????????????# ;;;;;;; """" "" | | ????????????????????????# K s """" "" | | ????????????????????????# s """" "" | | ????????????????????????###;;;;;;; """" "" | | ??????????????????????????## ;"""T """""""" | | ???????????????????????????# ;;;; | | ???????????????????????????## | | ????????????????????????????# ; | | ????????????????????????????## "" | | ?????????????????????????????# " | | ?????????????????????????????## | | ??????????????????????????????## | | | | | | | | | | | | | | | | | | | +----------------------------------------------------+ Best States ------------- Heat Dissipation 132 Coolant Potential 65 Energy Generation 62 Energy Capacity 1665 Matter Stores 300 Matter Capacity 425 Sight Range 16 Robot Scan Range 16 Terrain Scan Range 24 Terrain Scan Density 10 Power Amplification 60 Base Temperature (-) 200 Armor Coverage 1200 Resistance: KI 60 Resistance: TH 100 Resistance: EX 35 Resistance: EM 35 Resistance: I 35 Resistance: S 35 Resistance: P 35 Utility Shielding 66 Weapon Shielding 90 Point Defense Rating 240 Evasion (%) 63 Targeting Accuracy 10 Target Analysis 8 Core Analysis 15 Recoil Reduction 4 Particle Charging 20 Overload Amplification 50 Stasis Canceling 1 Offensive Hacking 40 Relay Coupler Types 286 Relay Coupler Value 5 Item Schematics ----------------- Hcp. Storage Unit | -10/Materials | Hacked Lrg. Storage Unit | -10/Materials | Hacked Sensor Array | -10/Materials | Hacked Imp. Sensor Array | -8/Materials | Scanalyzed Datajack | -8/Materials | Scanalyzed Adv. Targeting Computer | -8/Materials | Scanalyzed Hcp. Matter Pod | -8/Materials | Scanalyzed Nuclear Core | -8/Materials | Scanalyzed Rnf. Deuterium Engine | -8/Materials | Scanalyzed Remote Datajack | -7/Factory | Scanalyzed Adv. Treads | -7/Factory | Scanalyzed Arm. Treads | -6/Factory | Hacked Imp. Medium Treads | -6/Factory | Hacked Enh. Optical Array | -6/Factory | Hacked Centrium Wheel | -6/Factory | Hacked Biometal Heavy Treads | -3/Research | Hacked Robot Schematics ------------------ None Fabricated ------------ Adv. Treads | x2 | -7/Factory Adv. Treads | x2 | -6/Factory Arm. Treads | x2 | -6/Factory Hcp. Storage Unit | x1 | -4/Factory Arm. Treads | x2 | -4/Factory Arm. Treads | x2 | -3/Research Biometal Heavy Treads | x2 | -3/Testing Alien Tech Used ----------------- Subatomic Replicator Integrated Mediator Terrabomb Transdimensional Reconstructor Matter Drive LRC Storage LRC Matter Compressor Achievements -------------- Pyromaniac Challenges ------------ None Game ------ Seed GlidesysScatterSteel Manual? 0 Play Time 07:27:19 Cumulative 240.7 hours Start 2021.06.14 @ 21:28:38 End 2021.06.19 @ 23:27:39 Sessions 18 Manual Loads 0 Difficulty Explorer Special Mode None Game No. 94 Rogue 68 Adventurer 0 Explorer 26 Win Type - Total 7 Types 5/1/1/0/0/0/0/0/0 Lore% 65 Gallery% 71 Achievement% 60 Wizard Run 0 Options --------- ASCII 1 Keyboard 1 Movement Numpad Keybinds 0 Fullscreen 1 Font 18/SmallcapsGlow Map View 76x50 Tactical HUD 1 Map Filters NONE Filters NONE Steam 1 RUN: b72f7dd4-eb3a-4e58-85bb-96d6e00348c9